fUSD/lending_fUSD_20260202
["ID","MTS","AMOUNT","RATE_DAILY","PERIOD"]
[404330144,1770063058865,-450.0,0.00020822,2]
[404330145,1770063058874,-550.0,0.00020822,2]
[404330146,1770063058885,-500.0,0.00020822,2]
[404330147,1770063058895,-400.0,0.0002087,2]
[404330148,1770063058905,-624.6280421,0.00020877,2]
[404330149,1770063058914,-817.0,0.00020881,10]
[404330150,1770063058923,-1163.5986,0.00020895,2]
[404330151,1770063058933,-2000.0,0.00020895,2]
[404330152,1770063058946,-500.0,0.000209,10]
[404330153,1770063058956,-159.60859955,0.00020916,2]
[404330154,1770063058967,-400.0,0.0002097,2]
[404330155,1770063058979,-400.0,0.0002097,2]
[404330156,1770063058991,-400.0,0.0002097,2]
[404330157,1770063059001,-400.0,0.0002097,2]
[404330158,1770063059011,-400.0,0.0002097,2]
[404330159,1770063059022,-400.0,0.0002097,2]
[404330160,1770063059032,-400.0,0.0002097,2]
[404330161,1770063059042,-180.0,0.00020999,2]
[404330162,1770063059051,-175.0,0.00020999,2]
[404330163,1770063059061,-20000.0,0.00021,2]
[404330164,1770063059071,-40000.0,0.00021,2]
[404330165,1770063059081,-1194.5330497,0.00021,2]
[404330166,1770063059091,-197.1676119,0.00021,2]
[404330167,1770063059101,-190223.35736012,0.00021,2]
[404330168,1770063059110,-187100.5175304,0.00021,2]
[404330169,1770063059120,-150.0,0.00021,2]
[404330170,1770063059129,-150.0,0.00021,2]
[404330171,1770063059139,-150.0,0.00021,2]
[404330172,1770063059148,-150.0,0.00021,2]
[404330173,1770063059157,-150.0,0.00021,2]
[404330174,1770063059166,-150.0,0.00021,2]
[404330175,1770063059175,-150.0,0.00021,2]
[404330176,1770063059184,-150.0,0.00021,2]
[404330177,1770063059193,-150.0,0.00021,2]
[404330178,1770063059202,-616.0,0.00021,2]
[404330179,1770063059211,-3481.0,0.00021,2]
[404330180,1770063059220,-400.0,0.00021,2]
[404330181,1770063059230,-151.58322,0.0002101,2]
[404330182,1770063059241,-200.0,0.00021065,2]
[404330183,1770063059250,-12528.98,0.00021068,2]
[404330184,1770063059260,-400.0,0.0002107,2]
[404330185,1770063059270,-400.0,0.0002107,2]
[404330186,1770063059279,-180.26364618,0.00021107,2]
[404330187,1770063059289,-373.07297731,0.00021149,2]
[404330188,1770063059299,-621.78829552,0.00021151,2]
[404330189,1770063059309,-775.47832561,0.00021151,2]
[404330190,1770063059319,-301.1433787,0.00021153,2]
[404330191,1770063059329,-2054.15682157,0.00021153,2]
[404330192,1770063059339,-251.11897888,0.00021153,2]
[404330193,1770063059349,-6384.87,0.0002137,2]
[404330194,1770063059358,-550.0,0.0002137,2]
[404330195,1770063059367,-650.0,0.0002137,2]
[404330196,1770063059377,-200.0,0.00021463,2]
[404330197,1770063059387,-57604.9766364,0.000215,2]
[404330198,1770063059396,-222.40959499,0.000215,2]
[404330199,1770063059405,-502.0,0.00021542,4]
[404330200,1770063059414,-155.0,0.00021599,2]
[404330201,1770063059424,-200.0,0.0002164,2]
[404330202,1770063059435,-159.60859955,0.00021691,2]
[404330203,1770063059446,-500.0,0.00021699,2]
[404330204,1770063059458,-260.4103811,0.00021701,2]
[404330205,1770063059467,-200.0,0.0002173,2]
[404330206,1770063059476,-200.0,0.0002175,2]
[404330207,1770063059486,-1508.0156927,0.00021856,2]
[404330208,1770063059495,-839.0,0.00021895,2]
[404330209,1770063059504,-5000.0,0.00021918,2]
[404330210,1770063059513,-151.0,0.00021918,2]
[404330211,1770063059522,-151.0,0.00021918,2]
[404330212,1770063059531,-155.511067,0.00021918,2]
[404330213,1770063059541,-800.0,0.00021918,4]
[404330214,1770063059552,-800.0,0.00021918,4]
[404330215,1770063059561,-800.0,0.00021918,4]
[404330216,1770063059570,-800.0,0.00021918,4]
[404330217,1770063059580,-800.0,0.00021918,4]
[404330218,1770063059589,-800.0,0.00021918,4]
[404330219,1770063059600,-800.0,0.00021918,4]
[404330220,1770063059610,-800.0,0.00021918,4]
[404330221,1770063059619,-650.0,0.00021918,2]
[404330222,1770063059629,-750.0,0.00021918,2]
[404330223,1770063059639,-800.0,0.00021918,4]
[404330224,1770063059649,-800.0,0.00021918,4]
[404330225,1770063059661,-800.0,0.00021918,4]
[404330226,1770063059671,-800.0,0.00021918,4]
[404330227,1770063059681,-800.0,0.00021918,4]
[404330228,1770063059691,-800.0,0.00021918,4]
[404330229,1770063059700,-800.0,0.00021918,4]
[404330230,1770063059711,-800.0,0.00021918,4]
[404330231,1770063059723,-500.0,0.00021918,2]
[404330232,1770063059732,-150.0,0.00021918,2]
[404330233,1770063059741,-500.0,0.00021918,2]
[404330234,1770063059751,-204.43,0.00021925,2]
[404330235,1770063059760,-200.0,0.00021944,2]
[404330236,1770063059770,-500.0,0.00021973,2]
[404330237,1770063059779,-500.0,0.00021973,2]
[404330238,1770063059788,-200.0,0.00021995,2]
[404330239,1770063059797,-78573.88736207,0.00022,4]
[404330240,1770063059806,-163.53,0.00022,2]
[404330241,1770063059816,-160.0,0.00022,2]
[404330242,1770063059824,-151.0,0.00022,2]
[404330243,1770063059835,-151.24,0.00022,7]
[404330244,1770063059844,-10000.0,0.00022,2]
[404330245,1770063059853,-6507.25,0.00022,2]
[404330246,1770063059862,-500.0,0.00022,14]
[404330247,1770063059871,-200.0,0.00022,2]
[404330248,1770063059882,-254.1927314,0.00022028,2]
[404330249,1770063059891,-500.0,0.00022028,2]
[404330250,1770063059900,-500.0,0.00022082,2]
[404330251,1770063059909,-495.10716587,0.000221,2]
[404330252,1770063059919,-240.58043222,0.0002211,2]
[404330253,1770063059928,-1503.0,0.00022116,2]
[404330254,1770063059938,-1503.0,0.00022116,2]
[404330255,1770063059951,-1503.0,0.00022116,2]
[404330256,1770063059960,-1503.0,0.00022116,2]
[404330257,1770063059970,-151.0,0.00022116,2]
[404330258,1770063059979,-1503.0,0.00022116,2]
[404330259,1770063059990,-151.0,0.00022116,2]
[404330260,1770063059999,-1503.0,0.00022116,2]
[404330261,1770063060009,-151.0,0.00022116,2]
[404330262,1770063060021,-1503.0,0.00022116,2]
[404330263,1770063060030,-151.0,0.00022116,2]
[404330264,1770063060039,-1503.0,0.00022116,2]
[404330265,1770063060049,-151.0,0.00022116,2]
[404330266,1770063060058,-1503.0,0.00022116,2]
[404330267,1770063060068,-151.0,0.00022116,2]
[404330268,1770063060078,-1503.0,0.00022116,2]
[404330269,1770063060087,-151.0,0.00022116,2]
[404330270,1770063060097,-1503.0,0.00022116,2]
[404330271,1770063060106,-151.0,0.00022116,2]
[404330272,1770063060115,-1503.0,0.00022116,2]
[404330273,1770063060125,-151.0,0.00022116,2]
[404330274,1770063060134,-1503.0,0.00022116,2]
[404330275,1770063060144,-151.0,0.00022116,2]
[404330276,1770063060153,-1503.0,0.00022116,2]
[404330277,1770063060162,-1503.0,0.00022116,2]
[404330278,1770063060171,-151.0,0.00022116,2]
[404330279,1770063060180,-1503.0,0.00022116,2]
[404330280,1770063060190,-1503.0,0.00022116,2]
[404330281,1770063060200,-151.0,0.00022116,2]
[404330282,1770063060209,-1503.0,0.00022116,2]
[404330283,1770063060219,-151.0,0.00022116,2]
[404330284,1770063060231,-1503.0,0.00022116,2]
[404330285,1770063060240,-151.0,0.00022116,2]
[404330286,1770063060249,-1503.0,0.00022116,2]
[404330287,1770063060258,-151.0,0.00022116,2]
[404330288,1770063060267,-1503.0,0.00022116,2]
[404330289,1770063060277,-151.0,0.00022116,2]
[404330290,1770063060286,-1503.0,0.00022116,2]
[404330291,1770063060296,-151.0,0.00022116,2]
[404330292,1770063060305,-151.0,0.00022116,2]
[404330293,1770063060315,-151.0,0.00022116,2]
[404330294,1770063060324,-151.0,0.00022116,2]
[404330295,1770063060334,-151.0,0.00022116,2]
[404330296,1770063060343,-151.0,0.00022116,2]
[404330297,1770063060351,-151.0,0.00022116,2]
[404330298,1770063060360,-151.0,0.00022116,2]
[404330299,1770063060369,-151.0,0.00022116,2]
[404330300,1770063060379,-500.0,0.00022137,2]
[404330301,1770063060388,-500.0,0.00022192,2]
[404330302,1770063060397,-500.0,0.00022247,2]
[404330303,1770063060406,-270.0455652,0.00022249,2]
[404330304,1770063060416,-200.0,0.00022268,2]
[404330305,1770063060425,-500.0,0.00022302,2]
[404330306,1770063060435,-500.0,0.00022356,2]
[404330307,1770063060444,-502.0,0.00022389,5]
[404330308,1770063060453,-500.0,0.00022411,2]
[404330309,1770063060462,-500.0,0.00022444,2]
[404330310,1770063060471,-159.60859955,0.00022466,2]
[404330311,1770063060480,-546.18515186,0.00022466,2]
[404330312,1770063060490,-750.0,0.00022466,2]
[404330313,1770063060499,-500.0,0.00022466,2]
[404330314,1770063060508,-17709.0,0.00022473,2]
[404330315,1770063060518,-35542.5774449,0.000225,2]
[404330316,1770063060527,-386.87667747,0.00022518,2]
[404330317,1770063060537,-500.0,0.00022521,2]
[404330318,1770063060546,-200.0,0.00022575,2]
[404330319,1770063060555,-500.0,0.00022576,2]
[404330320,1770063060564,-3609.90023483,0.000226,2]
[404330321,1770063060574,-255.83699043,0.000226,2]
[404330322,1770063060584,-165.79,0.00022603,2]
[404330323,1770063060593,-401.86342568,0.00022617,2]
[404330324,1770063060603,-500.0,0.0002263,2]
[404330325,1770063060612,-500.0,0.00022685,2]
[404330326,1770063060621,-523.93162804,0.0002271,2]
[404330327,1770063060631,-336.483783,0.00022717,2]
[404330328,1770063060640,-9563.9,0.0002274,2]
[404330329,1770063060649,-500.0,0.0002274,2]
[404330330,1770063060659,-500.0,0.00022795,2]
[404330331,1770063060668,-280.03725112,0.00022797,2]
[404330332,1770063060677,-839.0,0.00022812,3]
[404330333,1770063060687,-500.0,0.0002285,2]
[404330334,1770063060696,-71846.2352822,0.00022859,2]
[404330335,1770063060705,-500.0,0.00022904,2]
[404330336,1770063060715,-500.0,0.00022959,2]
[404330337,1770063060724,-150.0,0.00022999,2]
[404330338,1770063060733,-503.33496424,0.00022999,2]
[404330339,1770063060743,-262744.13834339,0.00023,2]
[404330340,1770063060752,-1009.29926928,0.00023,2]
[404330341,1770063060762,-450.0,0.00023,2]
[404330342,1770063060771,-181.55642338,0.00023014,2]
[404330343,1770063060780,-500.0,0.00023014,2]
[404330344,1770063060790,-500.0,0.00023069,2]
[404330345,1770063060799,-500.0,0.00023123,2]
[404330346,1770063060808,-500.0,0.00023178,2]
[404330347,1770063060818,-473.77221156,0.000232,2]
[404330348,1770063060827,-500.0,0.00023233,2]
[404330349,1770063060838,-502.0,0.00023236,6]
[404330350,1770063060847,-159.60859958,0.0002324,2]
[404330351,1770063060856,-1334.0,0.00023272,2]
[404330352,1770063060866,-1410.0,0.00023272,2]
[404330353,1770063060876,-150.0,0.00023272,2]
[404330354,1770063060885,-1271.0,0.00023272,2]
[404330355,1770063060895,-1205.0,0.00023272,2]
[404330356,1770063060904,-917.0,0.00023272,2]
[404330357,1770063060914,-568.0,0.00023272,2]
[404330358,1770063060923,-3253.0,0.00023272,2]
[404330359,1770063060933,-1316.0,0.00023272,2]
[404330360,1770063060946,-500.0,0.00023288,2]
[404330361,1770063060956,-6507.25,0.000233,2]
[404330362,1770063060966,-500.0,0.00023343,2]
[404330363,1770063060976,-290.39862941,0.00023345,2]
[404330364,1770063060989,-500.0,0.00023397,2]
[404330365,1770063061000,-200.0,0.000235,2]
[404330366,1770063061011,-315.0,0.00023772,3]
[404330367,1770063061022,-401.19111454,0.00023887,2]
[404330368,1770063061033,-644.79446246,0.0002389,2]
[404330369,1770063061043,-804.17102365,0.0002389,2]
[404330370,1770063061052,-301.1433787,0.00023893,2]
[404330371,1770063061062,-1022.82529235,0.00024,2]
[404330372,1770063061072,-3600.0,0.00024,2]
[404330373,1770063061082,-1236.95968522,0.00024,2]
[404330374,1770063061091,-500.0,0.00024,30]
[404330375,1770063061101,-150.0,0.00024,2]
[404330376,1770063061111,-150.0,0.00024,2]
[404330377,1770063061122,-150.0,0.00024,2]
[404330378,1770063061132,-150.0,0.00024,2]
[404330379,1770063061142,-150.0,0.00024,2]
[404330380,1770063061152,-616.0,0.00024,2]
[404330381,1770063061162,-3481.0,0.00024,2]
[404330382,1770063061171,-502.0,0.00024083,6]
[404330383,1770063061181,-422.6060654,0.0002421,2]
[404330384,1770063061190,-3701.96913306,0.0002421,2]
[404330385,1770063061200,-167.83663657,0.0002465,2]
[404330386,1770063061209,-159.0,0.00024658,2]
[404330387,1770063061218,-159.0,0.00024658,2]
[404330388,1770063061227,-159.0,0.00024658,2]
[404330389,1770063061238,-159.59248424,0.00024658,2]
[404330390,1770063061249,-159.0,0.00024658,2]
[404330391,1770063061259,-159.0,0.00024658,2]
[404330392,1770063061270,-159.0,0.00024658,2]
[404330393,1770063061280,-1000.0,0.00024658,2]
[404330394,1770063061290,-1226.26,0.00024658,2]
[404330395,1770063061300,-151.0,0.00024658,2]
[404330396,1770063061311,-151.0,0.00024658,2]
[404330397,1770063061321,-152.403429,0.00024658,2]
[404330398,1770063061331,-151.0,0.00024658,2]
[404330399,1770063061340,-151.0,0.00024658,2]
[404330400,1770063061349,-151.0,0.00024658,2]
[404330401,1770063061361,-151.0,0.00024658,2]
[404330402,1770063061371,-151.0,0.00024658,2]
[404330403,1770063061381,-187.437171,0.00024658,2]
[404330404,1770063061391,-150.0,0.00024658,2]
[404330405,1770063061401,-11287.0,0.00024721,2]
[404330406,1770063061411,-300.0,0.00024799,10]
[404330407,1770063061420,-191.65,0.000248,14]
[404330408,1770063061430,-151.0,0.000248,7]
[404330409,1770063061440,-151.0,0.000248,7]
[404330410,1770063061450,-151.0,0.000248,7]
[404330411,1770063061459,-151.0,0.000248,7]
[404330412,1770063061469,-151.0,0.000248,7]
[404330413,1770063061479,-151.0,0.000248,7]
[404330414,1770063061489,-256.669782,0.000248,7]
[404330415,1770063061498,-256.669782,0.000248,7]
[404330416,1770063061508,-256.669782,0.000248,7]
[404330417,1770063061517,-256.669782,0.000248,7]
[404330418,1770063061527,-151.0,0.000248,7]
[404330419,1770063061536,-564296.53178214,0.000248,2]
[404330420,1770063061616,-3656.03712775,0.000248,2]
[404330421,1770063061655,-1000.0,0.00017902,2]
[404330422,1770063061665,-113.94680458,0.000248,2]
[404330423,1770063061676,-839.02881894,0.000248,2]
[404330424,1770063061927,-1716.0,0.00013889,2]
[404330425,1770063061936,-1160.31209116,0.00013916,2]
[404330426,1770063061968,-736.68790884,0.00013916,2]
[404330427,1770063061979,-444.0,0.00013944,2]
[404330428,1770063061992,-180.29,0.00017196,2]
[404330429,1770063062002,-2465.108,0.00017272,2]
[404330430,1770063062013,-1000.0,0.00017902,2]
[404330431,1770063062023,-895.26905907,0.00017902,2]
[404330432,1770063062141,-104.73094093,0.00017902,2]
[404330433,1770063062151,-172.53,0.00018018,2]
[404330434,1770063062161,-2445.0,0.00020272,2]
[404330435,1770063062170,-2445.0,0.00023272,2]
[404330436,1770063062180,-500.0,0.00023452,2]
[404330437,1770063062190,-6627.31675907,0.000248,2]
[404330438,1770063062202,-26236.57160552,0.000248,2]
[404330439,1770063062212,-151.0,0.000248,7]
[404330440,1770063062222,-151.0,0.000248,7]
[404330441,1770063062232,-151.0,0.000248,7]
[404330442,1770063062242,-151.0,0.000248,7]
[404330443,1770063062251,-1639.331664,0.000248,7]
[404330444,1770063062261,-1639.331664,0.000248,7]
[404330445,1770063062271,-1639.331664,0.000248,7]
[404330446,1770063062281,-1639.331664,0.000248,7]
[404330447,1770063062292,-151.0,0.000248,7]
[404330448,1770063062302,-151.0,0.000248,7]
[404330449,1770063062312,-300.0,0.00024869,10]
[404330450,1770063062322,-400.0,0.0002487,2]
[404330451,1770063062333,-400.0,0.0002487,2]
[404330452,1770063062342,-151.0,0.00024897,7]
[404330453,1770063062352,-300.0,0.00024899,10]
[404330454,1770063062362,-75207.8726431,0.000249,2]
[404330455,1770063062795,-216460.95880951,0.000249,2]
[404330456,1770063062911,-300.0,0.00010485,2]
[404330457,1770063062934,-1371.8790891,0.00010485,2]
[404330458,1770063062952,-418.13175742,0.00010485,2]
[404330459,1770063064020,300.0,0.00010484,2]
[404330463,1770063090426,199.24021691,0.00010385,2]
[404330464,1770063092155,-843.68122311,0.00010485,2]
[404330465,1770063093282,4267.629,0.00010275,2]
[404330466,1770063093343,233.14078309,0.00010275,2]
[404330467,1770063093365,139.66921691,0.00010275,2]
[404330468,1770063095955,-190.48782475,0.00010485,2]
[404330469,1770063098033,-650.0,0.00010485,2]
[404330470,1770063099642,-195.17,0.00010485,2]
[404330471,1770063102639,-1601.98415386,0.00010485,2]
[404330472,1770063104381,-241.10012185,0.00010485,2]
[404330473,1770063107629,-769.45347374,0.00010485,2]
[404330474,1770063109287,-1376.4768139,0.00010485,2]
[404330475,1770063112735,-300.0,0.00010485,2]
[404330476,1770063114820,-907.2260868,0.00010485,2]
[404330477,1770063115786,4860.34078309,0.00010475,2]
[404330478,1770063115807,5000.01,0.00010475,2]
[404330479,1770063115827,2783.66534263,0.00010475,2]
[404330480,1770063117606,-1045.99429143,0.00010485,2]
[404330481,1770063119934,-1442.29277205,0.00010485,2]
[404330482,1770063121487,-1492.90782458,0.00010485,2]
[404330483,1770063121982,150.0,0.00010484,2]
[404330484,1770063123118,300.0,0.00010484,2]
[404330485,1770063124401,-500.0,0.00010485,2]
[404330486,1770063127779,434.52334765,0.00010385,2]
[404330487,1770063130675,151.0,0.00010482,2]
[404330488,1770063136524,240.14730385,0.00010484,2]
[404330489,1770063136649,-280.77359984,0.00010485,2]
[404330490,1770063137910,578.69185683,0.00010484,2]
[404330491,1770063151489,-235.0,0.00010485,2]
[404330492,1770063153128,-250.0,0.00010485,2]
[404330493,1770063154899,-1073.24458984,0.00010485,2]
[404330494,1770063166523,-479.13010388,0.00010485,2]
[404330495,1770063181123,152.6488478,0.00010385,2]
[404330496,1770063181556,-573.71642087,0.00010485,2]
[404330498,1770063183633,-174.56232373,0.00010485,2]
[404330499,1770063185788,-250.00209646,0.00010485,2]
[404330500,1770063192395,3099.7173599,0.00010385,2]
[404330501,1770063204327,920.76651104,0.00010385,2]
[404330502,1770063241516,300.0,0.00010484,2]
[404330504,1770063258639,250.0,0.00010458,2]
[404330509,1770063272137,-255.99999983,0.00010485,2]
[404330510,1770063276202,-427.99821254,0.00010485,2]
[404330511,1770063277941,-250.0,0.00010485,2]
[404330512,1770063281321,-373.99821254,0.00010485,2]
[404330513,1770063284380,-351.0,0.00010485,2]
[404330514,1770063287900,-200.0,0.00010485,2]
[404330515,1770063293077,-356.66517729,0.00010485,2]
[404330516,1770063295798,-452.0,0.00010485,2]
[404330517,1770063297363,-354.90584462,0.00010485,2]
[404330518,1770063298904,-481.07873741,0.00010485,2]
[404330519,1770063299871,268.39101462,0.00010385,2]
[404330520,1770063301253,-177.71399708,0.00010485,2]
[404330521,1770063301521,1200.0,0.00010484,2]
[404330522,1770063301566,300.0,0.00010484,2]
[404330523,1770063301774,150.0,0.00010484,2]
[404330524,1770063303097,300.0,0.00010484,2]
[404330525,1770063304508,-318.49932487,0.00010485,2]
[404330526,1770063304845,168.1031127,0.00010484,2]
[404330527,1770063306095,-166.66000017,0.00010485,2]
[404330528,1770063306379,405.08429978,0.00010484,2]
[404330529,1770063307449,2637.94770196,0.00010173,2]
[404330530,1770063307473,10000.01,0.00010173,2]
[404330531,1770063307496,10000.01,0.00010173,2]
[404330532,1770063307520,10000.01,0.00010173,2]
[404330533,1770063307544,750.94229804,0.00010173,2]
[404330534,1770063309855,-1240.66120819,0.00010485,2]
[404330535,1770063312010,-186.75781478,0.00010485,2]
[404330536,1770063312595,2066.47823992,0.00010385,2]
[404330537,1770063314286,-1622.9577214,0.00010485,2]
[404330538,1770063317277,-401.0,0.00010485,2]
[404330539,1770063320356,500.0,0.00010484,2]
[404330540,1770063320395,500.0,0.00010484,2]
[404330541,1770063320432,500.0,0.00010484,2]
[404330542,1770063320468,500.0,0.00010484,2]
[404330543,1770063320508,182.58946204,0.00010484,2]
[404330544,1770063320532,317.41053796,0.00010484,2]
[404330545,1770063320579,500.0,0.00010484,2]
[404330546,1770063320627,500.0,0.00010484,2]
[404330547,1770063320674,500.0,0.00010484,2]
[404330548,1770063320715,500.0,0.00010484,2]
[404330549,1770063320759,500.0,0.00010484,2]
[404330550,1770063320807,500.0,0.00010484,2]
[404330551,1770063320851,500.0,0.00010484,2]
[404330552,1770063320891,500.0,0.00010484,2]
[404330553,1770063320929,500.0,0.00010484,2]
[404330554,1770063320972,182.59946204,0.00010484,2]
[404330555,1770063320997,317.40053796,0.00010484,2]
[404330556,1770063321036,500.0,0.00010484,2]
[404330557,1770063321074,500.0,0.00010484,2]
[404330558,1770063321128,500.0,0.00010484,2]
[404330559,1770063321171,500.0,0.00010484,2]
[404330560,1770063321212,500.0,0.00010484,2]
[404330561,1770063321254,187.79965649,0.00010484,2]
[404330562,1770063321294,500.0,0.00010484,2]
[404330563,1770063321333,500.0,0.00010484,2]
[404330564,1770063321371,500.0,0.00010484,2]
[404330565,1770063321415,494.80980555,0.00010484,2]
[404330566,1770063321439,5.19019445,0.00010484,2]
[404330567,1770063321481,500.0,0.00010484,2]
[404330568,1770063321524,500.0,0.00010484,2]
[404330569,1770063321562,500.0,0.00010484,2]
[404330570,1770063321603,500.0,0.00010484,2]
[404330571,1770063321650,500.0,0.00010484,2]
[404330572,1770063321999,500.0,0.00010484,2]
[404330573,1770063322039,500.0,0.00010484,2]
[404330574,1770063322076,500.0,0.00010484,2]
[404330575,1770063322129,500.0,0.00010484,2]
[404330576,1770063322166,494.81980555,0.00010484,2]
[404330577,1770063322188,5.18019445,0.00010484,2]
[404330578,1770063322238,500.0,0.00010484,2]
[404330579,1770063322291,500.0,0.00010484,2]
[404330580,1770063322338,500.0,0.00010484,2]
[404330581,1770063322376,500.0,0.00010484,2]
[404330582,1770063322418,500.0,0.00010484,2]
[404330583,1770063322455,500.0,0.00010484,2]
[404330584,1770063322492,500.0,0.00010484,2]
[404330585,1770063322534,500.0,0.00010484,2]
[404330586,1770063322575,500.0,0.00010484,2]
[404330587,1770063322607,-205.0,0.00010485,2]
[404330588,1770063322650,494.82980555,0.00010484,2]
[404330589,1770063322673,5.17019445,0.00010484,2]
[404330590,1770063322726,500.0,0.00010484,2]
[404330591,1770063322769,500.0,0.00010484,2]
[404330592,1770063322810,500.0,0.00010484,2]
[404330593,1770063322851,500.0,0.00010484,2]
[404330594,1770063322907,500.0,0.00010484,2]
[404330595,1770063322962,500.0,0.00010484,2]
[404330596,1770063323005,500.0,0.00010484,2]
[404330597,1770063323059,500.0,0.00010484,2]
[404330598,1770063323108,500.0,0.00010484,2]
[404330599,1770063323476,494.83980555,0.00010484,2]
[404330600,1770063323502,5.16019445,0.00010484,2]
[404330601,1770063323556,500.0,0.00010484,2]
[404330602,1770063323602,500.0,0.00010484,2]
[404330603,1770063323646,500.0,0.00010484,2]
[404330604,1770063323699,500.0,0.00010484,2]
[404330605,1770063323765,500.0,0.00010484,2]
[404330606,1770063323812,500.0,0.00010484,2]
[404330607,1770063323854,500.0,0.00010484,2]
[404330608,1770063324379,-488.02390658,0.00010485,2]
[404330609,1770063327676,-302.0,0.00010485,2]
[404330610,1770063329187,-500.0,0.00010485,2]
[404330611,1770063332813,500.0,0.00010484,2]
[404330612,1770063332852,500.0,0.00010484,2]
[404330613,1770063332899,500.0,0.00010484,2]
[404330614,1770063332939,500.0,0.00010484,2]
[404330615,1770063332994,500.0,0.00010484,2]
[404330616,1770063333036,500.0,0.00010484,2]
[404330617,1770063333078,500.0,0.00010484,2]
[404330618,1770063333120,500.0,0.00010484,2]
[404330619,1770063333160,500.0,0.00010484,2]
[404330620,1770063333218,500.0,0.00010484,2]
[404330621,1770063333262,500.0,0.00010484,2]
[404330622,1770063333301,500.0,0.00010484,2]
[404330623,1770063333340,494.84980555,0.00010484,2]
[404330624,1770063333367,5.15019445,0.00010484,2]
[404330625,1770063333406,500.0,0.00010484,2]
[404330626,1770063333446,500.0,0.00010484,2]
[404330627,1770063333485,500.0,0.00010484,2]
[404330628,1770063333525,500.0,0.00010484,2]
[404330629,1770063333570,500.0,0.00010484,2]
[404330630,1770063333618,500.0,0.00010484,2]
[404330631,1770063333678,500.0,0.00010484,2]
[404330632,1770063333720,500.0,0.00010484,2]
[404330633,1770063333994,500.0,0.00010484,2]
[404330634,1770063334040,500.0,0.00010484,2]
[404330635,1770063334083,500.0,0.00010484,2]
[404330636,1770063334173,500.0,0.00010484,2]
[404330637,1770063340913,-500.0,0.00010485,2]
[404330638,1770063347333,343.88268804,0.00010385,2]
[404330639,1770063347940,-500.0,0.00010485,2]
[404330640,1770063349629,-302.0,0.00010485,2]
[404330641,1770063351389,851.16007101,0.00010385,2]
[404330642,1770063351796,-199.75245602,0.00010485,2]
[404330643,1770063354558,-500.0,0.00010485,2]
[404330644,1770063357934,-500.0,0.00010485,2]
[404330645,1770063360090,-500.0,0.00010485,2]
[404330646,1770063362812,-500.0,0.00010485,2]
[404330647,1770063363332,214.21823813,0.00010484,2]
[404330648,1770063364671,-651.0,0.00010485,2]
[404330649,1770063366384,-337.02390658,0.00010485,2]
[404330650,1770063367087,267.6807,0.00010385,2]
[404330651,1770063371251,-651.0,0.00010485,2]
[404330652,1770063372190,500.0,0.00010484,2]